[Event "SM-blixten 2025"]
[Site "Uppsala, Sweden"]
[Date "2025.07.03"]
[Round "6.8"]
[White "Engstrom, Kaj"]
[Black "Angulo Salinas, Julio Osvaldo"]
[Result "0-1"]
[TimeControl "3 min + 2 sec increment starting from move 1"]
[WhiteElo "2156"]
[BlackElo "1994"]

1. e4 {[%clk 00:03:02]} {[%emt 00:00:02]} c6 {[%clk 00:03:03]} {[%emt
00:00:02]} 2. d4 {[%clk 00:03:02]} {[%emt 00:00:02]} d5 {[%clk 00:03:04]}
{[%emt 00:00:01]} 3. exd5 {[%clk 00:03:02]} {[%emt 00:00:02]} cxd5 {[%clk
00:03:06]} 4. c4 {[%clk 00:03:04]} Nf6 {[%clk 00:03:07]} {[%emt 00:00:02]} 5.
Nc3 {[%clk 00:03:04]} e6 {[%clk 00:03:08]} {[%emt 00:00:01]} 6. Nf3 {[%clk
00:03:04]} {[%emt 00:00:02]} Bb4 {[%clk 00:03:09]} {[%emt 00:00:01]} 7. cxd5
{[%clk 00:03:03]} {[%emt 00:00:03]} Nxd5 {[%emt 00:00:02]} 8. Bd2 {[%clk
00:03:04]} {[%emt 00:00:01]} O-O {[%clk 00:03:07]} {[%emt 00:00:04]} 9. Bd3
{[%clk 00:03:05]} Nf6 {[%clk 00:03:00]} {[%emt 00:00:10]} 10. O-O {[%clk
00:03:01]} {[%emt 00:00:05]} Nc6 {[%clk 00:02:47]} {[%emt 00:00:16]} 11. Bg5
{[%clk 00:02:59]} {[%emt 00:00:04]} Be7 {[%clk 00:02:46]} {[%emt 00:00:03]} 12.
Rc1 {[%clk 00:02:50]} {[%emt 00:00:10]} h6 {[%clk 00:02:42]} {[%emt 00:00:07]}
13. Bh4 {[%clk 00:02:51]} {[%emt 00:00:01]} Nd5 {[%clk 00:02:23]} {[%emt
00:00:21]} 14. Bg3 {[%clk 00:02:45]} {[%emt 00:00:08]} Nxc3 {[%clk 00:02:20]}
{[%emt 00:00:05]} 15. bxc3 {[%clk 00:02:44]} {[%emt 00:00:03]} b6 {[%clk
00:02:19]} {[%emt 00:00:03]} 16. Qe2 {[%clk 00:02:38]} {[%emt 00:00:07]} Bb7
{[%clk 00:02:18]} {[%emt 00:00:04]} 17. Rfd1 {[%clk 00:02:37]} {[%emt
00:00:03]} Bf6 {[%clk 00:02:17]} {[%emt 00:00:03]} 18. Bf4 {[%clk 00:02:34]}
{[%emt 00:00:05]} Ne7 {[%clk 00:02:16]} {[%emt 00:00:03]} 19. Ne5 {[%clk
00:02:27]} {[%emt 00:00:09]} Qd5 {[%clk 00:02:10]} {[%emt 00:00:08]} 20. f3
{[%clk 00:02:25]} {[%emt 00:00:04]} Qa5 {[%clk 00:01:43]} {[%emt 00:00:29]} 21.
Nd7 {[%clk 00:02:17]} {[%emt 00:00:10]} Nd5 {[%clk 00:01:39]} {[%emt 00:00:06]}
22. Bd2 {[%clk 00:02:03]} {[%emt 00:00:16]} Rfd8 {[%clk 00:01:16]} {[%emt
00:00:25]} 23. c4 {[%clk 00:01:36]} {[%emt 00:00:28]} Qxa2 {[%clk 00:01:11]}
{[%emt 00:00:08]} 24. cxd5 {[%clk 00:01:29]} {[%emt 00:00:09]} Bxd4+ {[%clk
00:01:08]} {[%emt 00:00:05]} 25. Kh1 {[%clk 00:01:30]} Rxd7 {[%clk 00:01:09]}
{[%emt 00:00:02]} 26. dxe6 {[%clk 00:01:30]} {[%emt 00:00:01]} Qxe6 {[%clk
00:01:10]} {[%emt 00:00:02]} 27. Qf1 {[%clk 00:01:10]} {[%emt 00:00:22]} Rad8
{[%clk 00:01:03]} {[%emt 00:00:09]} 28. Bf4 {[%clk 00:01:00]} {[%emt 00:00:12]}
Qf6 {[%clk 00:01:01]} {[%emt 00:00:04]} 29. Bg3 {[%clk 00:00:44]} {[%emt
00:00:18]} Be5 {[%clk 00:01:02]} {[%emt 00:00:01]} 30. Bf2 {[%clk 00:00:14]}
{[%emt 00:00:32]} Qf4 {[%clk 00:00:48]} {[%emt 00:00:16]} 31. Bg1 {[%clk
00:00:15]} {[%emt 00:00:01]} Rxd3 {[%clk 00:00:38]} {[%emt 00:00:13]} 32. Rxd3
{[%clk 00:00:11]} {[%emt 00:00:05]} Rxd3 {[%clk 00:00:39]} {[%emt 00:00:01]} 33.
Qxd3 {[%clk 00:00:06]} {[%emt 00:00:07]} Qxc1 {[%clk 00:00:39]} {[%emt
00:00:01]} 34. Qd8+ {[%clk 00:00:07]} {[%emt 00:00:02]} Kh7 {[%clk 00:00:38]}
{[%emt 00:00:03]} 35. Qd3+ {[%clk 00:00:06]} {[%emt 00:00:03]} g6 {[%clk
00:00:40]} {[%emt 00:00:01]} 36. Qb3 {[%clk 00:00:05]} {[%emt 00:00:03]} Qc7
{[%clk 00:00:38]} {[%emt 00:00:03]} 0-1

[Event "SM-blixten 2025"]
[Site "Uppsala, Sweden"]
[Date "2025.07.03"]
[Round "8.4"]
[White "Carlsson, Ludvig"]
[Black "Hakanson, Josef"]
[Result "1/2-1/2"]
[TimeControl "3 min + 2 sec increment starting from move 1"]
[WhiteTitle "IM"]
[WhiteElo "2386"]
[BlackElo "2131"]

1. Nf3 {[%clk 00:03:03]} {[%emt 00:00:01]} d5 {[%clk 00:03:03]} 2. d4 {[%clk
00:03:04]} {[%emt 00:00:01]} e6 {[%clk 00:03:03]} {[%emt 00:00:02]} 3. c4
{[%clk 00:03:05]} a6 {[%clk 00:03:05]} {[%emt 00:00:02]} 4. Bg5 {[%clk
00:03:00]} {[%emt 00:00:06]} Be7 {[%clk 00:03:05]} {[%emt 00:00:02]} 5. Bxe7
{[%clk 00:03:01]} {[%emt 00:00:01]} Qxe7 {[%clk 00:03:05]} {[%emt 00:00:02]} 6.
e3 {[%clk 00:03:00]} {[%emt 00:00:02]} Nf6 {[%clk 00:02:54]} {[%emt 00:00:13]}
7. Nc3 {[%clk 00:02:54]} {[%emt 00:00:09]} O-O {[%clk 00:02:41]} {[%emt
00:00:14]} 8. Rc1 {[%clk 00:02:54]} {[%emt 00:00:02]} Nbd7 {[%clk 00:02:34]}
{[%emt 00:00:10]} 9. a3 {[%clk 00:02:30]} {[%emt 00:00:27]} dxc4 {[%clk
00:02:26]} {[%emt 00:00:09]} 10. Bxc4 {[%clk 00:02:30]} {[%emt 00:00:01]} c5
{[%clk 00:02:27]} {[%emt 00:00:02]} 11. Bd3 {[%clk 00:02:17]} {[%emt 00:00:14]}
b5 {[%clk 00:02:27]} {[%emt 00:00:04]} 12. Ne4 {[%clk 00:02:14]} {[%emt
00:00:03]} cxd4 {[%clk 00:02:18]} {[%emt 00:00:11]} 13. Nxd4 {[%clk 00:02:11]}
{[%emt 00:00:05]} Bb7 {[%clk 00:02:19]} {[%emt 00:00:02]} 14. Nxf6+ {[%clk
00:01:34]} {[%emt 00:00:38]} Nxf6 {[%clk 00:02:19]} {[%emt 00:00:03]} 15. O-O
{[%clk 00:01:32]} {[%emt 00:00:03]} Rac8 {[%clk 00:02:19]} {[%emt 00:00:02]} 16.
Qe2 {[%clk 00:01:30]} {[%emt 00:00:04]} Rfd8 {[%clk 00:02:16]} {[%emt
00:00:06]} 17. Rc2 {[%clk 00:01:26]} {[%emt 00:00:06]} Rxc2 {[%clk 00:02:16]}
{[%emt 00:00:02]} 18. Qxc2 {[%clk 00:01:27]} {[%emt 00:00:02]} Rc8 {[%clk
00:02:11]} {[%emt 00:00:07]} 19. Qd2 {[%clk 00:01:27]} {[%emt 00:00:01]} Ne4
{[%clk 00:02:07]} {[%emt 00:00:05]} 20. Bxe4 {[%clk 00:01:26]} {[%emt
00:00:04]} Bxe4 {[%clk 00:02:08]} {[%emt 00:00:01]} 21. Rc1 {[%clk 00:01:26]}
{[%emt 00:00:01]} Rd8 {[%clk 00:01:53]} {[%emt 00:00:17]} 22. f3 {[%clk
00:01:26]} {[%emt 00:00:02]} e5 {[%clk 00:01:37]} {[%emt 00:00:18]} 23. fxe4
{[%clk 00:01:11]} {[%emt 00:00:17]} exd4 {[%clk 00:01:37]} {[%emt 00:00:02]} 24.
exd4 {[%clk 00:01:06]} {[%emt 00:00:07]} Qxe4 {[%clk 00:01:37]} {[%emt
00:00:02]} 25. d5 {[%clk 00:01:07]} {[%emt 00:00:01]} g6 {[%clk 00:01:22]}
{[%emt 00:00:17]} 26. d6 {[%clk 00:01:07]} {[%emt 00:00:01]} Rd7 {[%clk
00:01:13]} {[%emt 00:00:12]} 27. Re1 {[%clk 00:00:32]} {[%emt 00:00:37]} Rxd6
{[%clk 00:01:04]} {[%emt 00:00:12]} 28. Qc3 {[%clk 00:00:20]} {[%emt 00:00:13]}
Qd4+ {[%clk 00:01:05]} {[%emt 00:00:01]} 29. Qxd4 {[%clk 00:00:19]} {[%emt
00:00:03]} Rxd4 {[%clk 00:01:06]} {[%emt 00:00:01]} 30. Rc1 {[%clk 00:00:12]}
{[%emt 00:00:09]} Rd2 {[%clk 00:01:06]} {[%emt 00:00:01]} 31. Rc6 {[%clk
00:00:13]} {[%emt 00:00:02]} Rxb2 {[%clk 00:01:07]} {[%emt 00:00:01]} 32. Rxa6
{[%clk 00:00:14]} {[%emt 00:00:02]} g5 {[%clk 00:01:02]} {[%emt 00:00:07]} 33.
h3 {[%clk 00:00:15]} Kg7 {[%clk 00:01:02]} {[%emt 00:00:02]} 34. a4 {[%clk
00:00:16]} bxa4 {[%clk 00:01:03]} {[%emt 00:00:01]} 35. Rxa4 {[%clk 00:00:17]}
{[%emt 00:00:01]} h5 {[%clk 00:01:04]} {[%emt 00:00:01]} 36. Ra6 {[%clk
00:00:15]} {[%emt 00:00:04]} f6 {[%clk 00:01:04]} {[%emt 00:00:02]} 37. Rc6
{[%clk 00:00:16]} {[%emt 00:00:01]} h4 {[%clk 00:01:05]} {[%emt 00:00:01]} 38.
Ra6 {[%clk 00:00:17]} {[%emt 00:00:01]} Kg6 {[%clk 00:01:06]} {[%emt 00:00:01]}
39. Rc6 {[%clk 00:00:18]} Rb5 {[%clk 00:01:07]} {[%emt 00:00:01]} 40. Ra6
{[%clk 00:00:19]} {[%emt 00:00:02]} Kf5 {[%clk 00:01:08]} {[%emt 00:00:01]} 41.
Kh2 {[%clk 00:00:16]} {[%emt 00:00:04]} Ke5 {[%clk 00:01:08]} {[%emt 00:00:02]}
42. Rc6 {[%clk 00:00:16]} {[%emt 00:00:02]} f5 {[%clk 00:01:09]} {[%emt
00:00:01]} 43. Rc4 {[%clk 00:00:17]} {[%emt 00:00:01]} Rd5 {[%clk 00:01:07]}
{[%emt 00:00:04]} 44. Ra4 {[%clk 00:00:17]} {[%emt 00:00:02]} Rd4 {[%clk
00:01:08]} 45. Ra1 {[%clk 00:00:18]} {[%emt 00:00:02]} Rd3 {[%clk 00:01:01]}
{[%emt 00:00:09]} 46. Ra4 {[%clk 00:00:17]} {[%emt 00:00:03]} Re3 {[%clk
00:01:01]} {[%emt 00:00:02]} 47. Rb4 {[%clk 00:00:18]} {[%emt 00:00:01]} Re4
{[%clk 00:01:00]} {[%emt 00:00:03]} 48. Rb1 {[%clk 00:00:19]} {[%emt 00:00:02]}
g4 {[%clk 00:01:00]} {[%emt 00:00:01]} 49. hxg4 {[%clk 00:00:19]} {[%emt
00:00:02]} fxg4 {[%clk 00:01:01]} {[%emt 00:00:01]} 50. Rb5+ {[%clk 00:00:18]}
{[%emt 00:00:03]} Kf4 {[%clk 00:01:01]} {[%emt 00:00:01]} 51. g3+ {[%clk
00:00:19]} {[%emt 00:00:02]} hxg3+ {[%clk 00:01:01]} {[%emt 00:00:02]} 52. Kg2
{[%clk 00:00:20]} {[%emt 00:00:01]} Re2+ {[%clk 00:01:01]} {[%emt 00:00:02]} 53.
Kg1 {[%clk 00:00:21]} {[%emt 00:00:01]} g2 {[%clk 00:01:00]} {[%emt 00:00:03]}
54. Rb4+ {[%clk 00:00:21]} {[%emt 00:00:02]} Kg5 {[%clk 00:00:58]} {[%emt
00:00:04]} 55. Rb3 {[%clk 00:00:19]} {[%emt 00:00:04]} Kh4 {[%clk 00:00:58]}
{[%emt 00:00:01]} 56. Ra3 {[%clk 00:00:18]} {[%emt 00:00:04]} g3 {[%clk
00:00:55]} {[%emt 00:00:05]} 57. Ra4+ {[%clk 00:00:17]} {[%emt 00:00:03]} Kh3
{[%clk 00:00:55]} {[%emt 00:00:02]} 58. Rh4+ {[%clk 00:00:17]} {[%emt
00:00:01]} 1/2-1/2

[Event "SM-blixten 2025"]
[Site "Uppsala, Sweden"]
[Date "2025.07.03"]
[Round "9.10"]
[White "Ziegler, Ari"]
[Black "Odell Johansson, Leo"]
[Result "1-0"]
[TimeControl "3 min + 2 sec increment starting from move 1"]
[WhiteTitle "IM"]
[WhiteElo "2297"]
[BlackElo "1991"]

1. d4 {[%clk 00:03:04]} {[%emt 00:09:25]} d5 {[%clk 00:03:03]} {[%emt
00:00:02]} 2. c4 {[%clk 00:03:05]} {[%emt 00:00:01]} e6 {[%clk 00:03:04]}
{[%emt 00:00:01]} 3. Nc3 {[%clk 00:03:06]} a6 {[%clk 00:03:05]} {[%emt
00:00:01]} 4. cxd5 {[%clk 00:03:05]} {[%emt 00:00:03]} exd5 {[%clk 00:03:06]}
{[%emt 00:00:01]} 5. Nf3 {[%clk 00:03:05]} Nf6 {[%clk 00:03:07]} 6. Bg5 {[%clk
00:03:06]} {[%emt 00:00:01]} Be6 {[%clk 00:03:07]} {[%emt 00:00:02]} 7. e3
{[%clk 00:03:06]} {[%emt 00:00:02]} Bd6 {[%clk 00:03:07]} {[%emt 00:00:02]} 8.
Bd3 {[%clk 00:03:00]} {[%emt 00:00:08]} Nbd7 {[%clk 00:03:07]} {[%emt
00:00:02]} 9. Qc2 {[%clk 00:02:55]} {[%emt 00:00:07]} c6 {[%clk 00:03:08]} 10.
O-O {[%clk 00:02:51]} {[%emt 00:00:06]} Qb8 {[%clk 00:02:55]} {[%emt 00:00:15]}
11. e4 {[%clk 00:02:43]} {[%emt 00:00:10]} dxe4 {[%clk 00:02:47]} {[%emt
00:00:11]} 12. Nxe4 {[%clk 00:02:43]} {[%emt 00:00:01]} Nxe4 {[%clk 00:02:11]}
{[%emt 00:00:38]} 13. Bxe4 {[%clk 00:02:43]} {[%emt 00:00:02]} h6 {[%clk
00:02:05]} {[%emt 00:00:08]} 14. Bh4 {[%clk 00:02:43]} {[%emt 00:00:02]} O-O
{[%clk 00:02:00]} {[%emt 00:00:08]} 15. Rfe1 {[%clk 00:02:18]} {[%emt
00:00:27]} Nb6 {[%clk 00:02:00]} {[%emt 00:00:02]} 16. Bh7+ {[%clk 00:02:11]}
{[%emt 00:00:08]} Kh8 {[%clk 00:01:59]} {[%emt 00:00:03]} 17. Bf5 {[%clk
00:02:12]} {[%emt 00:00:01]} Bd5 {[%clk 00:01:47]} {[%emt 00:00:15]} 18. Ne5
{[%clk 00:02:03]} {[%emt 00:00:11]} Qc7 {[%clk 00:01:34]} {[%emt 00:00:15]} 19.
Bg3 {[%clk 00:02:02]} {[%emt 00:00:02]} Rad8 {[%clk 00:01:04]} {[%emt
00:00:33]} 20. a4 {[%clk 00:01:55]} {[%emt 00:00:08]} a5 {[%clk 00:01:01]}
{[%emt 00:00:05]} 21. b3 {[%clk 00:01:53]} {[%emt 00:00:03]} Nc8 {[%clk
00:00:55]} {[%emt 00:00:09]} 22. Rad1 {[%clk 00:01:40]} {[%emt 00:00:15]} Ne7
{[%clk 00:00:56]} 23. Bh3 {[%clk 00:01:36]} {[%emt 00:00:04]} Qb6 {[%clk
00:00:45]} {[%emt 00:00:15]} 24. Re3 {[%clk 00:01:07]} {[%emt 00:00:30]} Bxe5
{[%clk 00:00:43]} {[%emt 00:00:04]} 25. Bxe5 {[%clk 00:01:04]} {[%emt
00:00:06]} Ng6 {[%clk 00:00:41]} {[%emt 00:00:04]} 26. Bg3 {[%clk 00:01:01]}
{[%emt 00:00:04]} Rde8 {[%clk 00:00:29]} {[%emt 00:00:14]} 27. Rc3 {[%clk
00:00:38]} {[%emt 00:00:25]} Qa6 {[%clk 00:00:16]} {[%emt 00:00:15]} 28. Bf5
{[%clk 00:00:31]} {[%emt 00:00:09]} Qe2 {[%clk 00:00:14]} {[%emt 00:00:04]} 29.
Qxe2 {[%clk 00:00:24]} {[%emt 00:00:08]} Rxe2 {[%clk 00:00:15]} {[%emt
00:00:02]} 30. Bc7 {[%clk 00:00:20]} {[%emt 00:00:06]} Rfe8 {[%clk 00:00:14]}
{[%emt 00:00:03]} 31. h3 {[%clk 00:00:19]} {[%emt 00:00:03]} Re1+ {[%clk
00:00:12]} {[%emt 00:00:05]} 32. Rxe1 {[%clk 00:00:20]} {[%emt 00:00:01]} Rxe1+
33. Kh2 Re2 {[%clk 00:00:13]} {[%emt 00:00:02]} 34. Kg3 {[%clk 00:00:22]}
{[%emt 00:00:02]} Ne7 {[%clk 00:00:13]} {[%emt 00:00:02]} 35. Bg4 {[%clk
00:00:19]} {[%emt 00:00:04]} Rb2 {[%clk 00:00:14]} {[%emt 00:00:01]} 36. Bxa5
{[%clk 00:00:20]} {[%emt 00:00:02]} Rxb3 {[%clk 00:00:12]} {[%emt 00:00:04]} 37.
Bd1 {[%clk 00:00:14]} {[%emt 00:00:07]} Rxc3+ {[%clk 00:00:10]} {[%emt
00:00:05]} 38. Bxc3 {[%clk 00:00:15]} {[%emt 00:00:01]} Kg8 {[%clk 00:00:08]}
{[%emt 00:00:04]} 39. Kf4 {[%clk 00:00:16]} {[%emt 00:00:01]} f6 {[%clk
00:00:08]} {[%emt 00:00:01]} 40. f3 {[%clk 00:00:16]} {[%emt 00:00:02]} Kf7
{[%clk 00:00:09]} 41. Bc2 {[%clk 00:00:14]} {[%emt 00:00:04]} Ke6 {[%clk
00:00:08]} {[%emt 00:00:03]} 42. a5 {[%clk 00:00:15]} {[%emt 00:00:01]} g5+
{[%clk 00:00:08]} {[%emt 00:00:02]} 43. Ke3 {[%clk 00:00:16]} Nf5+ {[%clk
00:00:07]} {[%emt 00:00:03]} 44. Kd2 {[%clk 00:00:15]} {[%emt 00:00:03]} Nh4
{[%clk 00:00:08]} {[%emt 00:00:01]} 45. g4 {[%clk 00:00:09]} {[%emt 00:00:08]}
Nxf3+ {[%clk 00:00:10]} {[%emt 00:00:01]} 46. Ke3 {[%clk 00:00:10]} Ng1 {[%clk
00:00:10]} {[%emt 00:00:02]} 47. Bf5+ {[%clk 00:00:10]} {[%emt 00:00:01]} Kd6
{[%clk 00:00:10]} {[%emt 00:00:02]} 48. Bc8 {[%clk 00:00:11]} {[%emt 00:00:02]}
Nxh3 {[%clk 00:00:10]} {[%emt 00:00:01]} 49. Bxb7 {[%clk 00:00:12]} {[%emt
00:00:02]} Nf4 {[%clk 00:00:11]} {[%emt 00:00:01]} 50. a6 {[%clk 00:00:12]}
{[%emt 00:00:02]} Kc7 {[%clk 00:00:08]} {[%emt 00:00:05]} 51. Ba5+ {[%clk
00:00:11]} {[%emt 00:00:02]} Kb8 {[%clk 00:00:09]} {[%emt 00:00:01]} 52. Bb4
{[%clk 00:00:12]} {[%emt 00:00:01]} c5 {[%clk 00:00:04]} {[%emt 00:00:07]} 53.
Bxc5 {[%clk 00:00:12]} {[%emt 00:00:03]} Bxb7 {[%clk 00:00:04]} {[%emt
00:00:01]} 54. axb7 {[%emt 00:00:02]} Kxb7 {[%clk 00:00:04]} {[%emt 00:00:02]}
55. Ke4 {[%clk 00:00:13]} {[%emt 00:00:02]} Kc6 {[%clk 00:00:05]} 56. Be7
{[%clk 00:00:14]} {[%emt 00:00:01]} Kd7 {[%clk 00:00:06]} 57. Bxf6 {[%clk
00:00:15]} {[%emt 00:00:01]} Ke6 {[%clk 00:00:07]} 58. Bg7 {[%clk 00:00:15]}
{[%emt 00:00:02]} Nd5 {[%clk 00:00:07]} {[%emt 00:00:03]} 59. Bxh6 {[%clk
00:00:15]} {[%emt 00:00:02]} Nf6+ {[%clk 00:00:07]} {[%emt 00:00:02]} 60. Kf3
{[%clk 00:00:14]} {[%emt 00:00:03]} Ng8 {[%clk 00:00:08]} 61. Bxg5 {[%clk
00:00:14]} {[%emt 00:00:01]} Kd5 {[%clk 00:00:09]} 62. Ke3 {[%clk 00:00:16]}
Ke6 {[%clk 00:00:09]} {[%emt 00:00:02]} 63. Ke4 {[%clk 00:00:17]} Kd6 {[%clk
00:00:10]} {[%emt 00:00:02]} 64. d5 {[%clk 00:00:18]} {[%emt 00:00:01]} Kd7
{[%clk 00:00:11]} 65. Ke5 {[%clk 00:00:19]} {[%emt 00:00:01]} Ke8 {[%clk
00:00:12]} {[%emt 00:00:01]} 66. d6 {[%clk 00:00:20]} {[%emt 00:00:01]} Kd7
{[%clk 00:00:13]} 67. Kd5 {[%clk 00:00:21]} Ke8 {[%clk 00:00:14]} {[%emt
00:00:01]} 68. Ke6 {[%clk 00:00:22]} {[%emt 00:00:01]} Ne7 {[%clk 00:00:13]}
{[%emt 00:00:03]} 69. d7+ {[%clk 00:00:22]} {[%emt 00:00:03]} Kd8 {[%clk
00:00:13]} {[%emt 00:00:02]} 70. Bxe7+ {[%clk 00:00:22]} {[%emt 00:00:02]} 1-0

[Event "SM-blixten 2025"]
[Site "Uppsala, Sweden"]
[Date "2025.07.03"]
[Round "11.6"]
[White "Ziegler, Ari"]
[Black "Nilsson, Joakim"]
[Result "1-0"]
[TimeControl "3 min + 2 sec increment starting from move 1"]
[WhiteTitle "IM"]
[BlackTitle "FM"]
[WhiteElo "2297"]
[BlackElo "2208"]

1. d4 {[%clk 00:03:03]} {[%emt 00:06:21]} Nf6 {[%clk 00:03:02]} {[%emt
00:00:02]} 2. Bf4 {[%clk 00:03:04]} {[%emt 00:00:02]} b6 {[%clk 00:02:59]}
{[%emt 00:00:05]} 3. e3 {[%clk 00:03:01]} {[%emt 00:00:05]} Bb7 {[%clk
00:03:00]} 4. Nf3 {[%clk 00:03:01]} g6 {[%clk 00:03:01]} {[%emt 00:00:02]} 5.
c4 {[%clk 00:03:00]} {[%emt 00:00:03]} Bg7 {[%clk 00:03:01]} {[%emt 00:00:01]}
6. Nc3 {[%clk 00:03:01]} O-O {[%clk 00:03:01]} {[%emt 00:00:03]} 7. h3 {[%clk
00:03:02]} {[%emt 00:00:01]} Ne4 {[%clk 00:03:02]} 8. Nxe4 {[%clk 00:02:56]}
{[%emt 00:00:08]} Bxe4 {[%clk 00:03:03]} {[%emt 00:00:02]} 9. Be2 {[%clk
00:02:56]} c5 {[%clk 00:02:57]} {[%emt 00:00:09]} 10. O-O {[%clk 00:02:55]}
{[%emt 00:00:03]} Nc6 {[%clk 00:02:55]} {[%emt 00:00:04]} 11. Nd2 {[%clk
00:02:45]} {[%emt 00:00:12]} Bxg2 {[%clk 00:02:25]} {[%emt 00:00:31]} 12. Kxg2
{[%clk 00:02:45]} {[%emt 00:00:02]} cxd4 {[%clk 00:02:26]} {[%emt 00:00:02]} 13.
Rb1 {[%clk 00:02:20]} {[%emt 00:00:26]} Rc8 {[%clk 00:02:20]} {[%emt 00:00:08]}
14. Bf3 {[%clk 00:02:05]} {[%emt 00:00:18]} dxe3 {[%clk 00:02:10]} {[%emt
00:00:12]} 15. fxe3 {[%clk 00:02:05]} {[%emt 00:00:02]} Ne5 {[%clk 00:02:07]}
{[%emt 00:00:05]} 16. Bxe5 Bxe5 {[%clk 00:02:08]} 17. b3 {[%clk 00:01:52]} Qc7
{[%clk 00:02:03]} {[%emt 00:00:07]} 18. Ne4 {[%clk 00:01:46]} {[%emt 00:00:08]}
f5 {[%clk 00:01:45]} {[%emt 00:00:20]} 19. Nf2 {[%clk 00:01:36]} {[%emt
00:00:11]} Bh2 {[%clk 00:01:30]} {[%emt 00:00:17]} 20. Rh1 {[%clk 00:01:22]}
{[%emt 00:00:16]} e6 {[%clk 00:00:57]} {[%emt 00:00:35]} 21. Rxh2 {[%clk
00:01:19]} {[%emt 00:00:04]} f4 {[%clk 00:00:56]} {[%emt 00:00:04]} 22. e4
{[%clk 00:01:17]} {[%emt 00:00:04]} Qe5 {[%clk 00:00:49]} {[%emt 00:00:09]} 23.
Kh1 {[%clk 00:01:13]} {[%emt 00:00:06]} b5 {[%clk 00:00:42]} {[%emt 00:00:09]}
24. Ng4 {[%clk 00:01:00]} {[%emt 00:00:15]} Qg7 {[%clk 00:00:35]} {[%emt
00:00:09]} 25. e5 {[%clk 00:00:59]} {[%emt 00:00:03]} bxc4 {[%clk 00:00:32]}
{[%emt 00:00:05]} 26. bxc4 {[%clk 00:00:59]} {[%emt 00:00:02]} Rxc4 {[%clk
00:00:30]} {[%emt 00:00:03]} 27. Rc2 {[%clk 00:00:57]} {[%emt 00:00:04]} Rfc8
{[%clk 00:00:26]} {[%emt 00:00:06]} 28. Rxc4 {[%clk 00:00:57]} {[%emt
00:00:03]} Rxc4 {[%clk 00:00:28]} {[%emt 00:00:01]} 29. Nf6+ {[%clk 00:00:54]}
{[%emt 00:00:04]} 1-0

[Event "SM-blixten 2025"]
[Site "Uppsala, Sweden"]
[Date "2025.07.03"]
[Round "2.1"]
[White "Galperin, Platon"]
[Black "Stedman, Theodor"]
[Result "1-0"]
[TimeControl "3 min + 2 sec increment starting from move 1"]
[WhiteTitle "GM"]
[WhiteElo "2506"]
[BlackElo "1873"]

1. Nf3 {[%clk 00:03:02]} {[%emt 00:00:02]} c5 {[%clk 00:02:59]} {[%emt
00:00:06]} 2. e3 {[%clk 00:03:00]} {[%emt 00:00:04]} Nf6 {[%clk 00:02:58]}
{[%emt 00:00:03]} 3. b3 {[%clk 00:02:56]} {[%emt 00:00:06]} Nc6 {[%clk
00:02:57]} {[%emt 00:00:03]} 4. Bb2 {[%clk 00:02:57]} {[%emt 00:00:01]} d5
{[%clk 00:02:48]} {[%emt 00:00:12]} 5. Bb5 {[%clk 00:02:56]} {[%emt 00:00:02]}
Qc7 {[%clk 00:02:41]} {[%emt 00:00:08]} 6. Ne5 {[%clk 00:02:55]} {[%emt
00:00:03]} a6 {[%clk 00:02:39]} {[%emt 00:00:06]} 7. Bxc6+ {[%clk 00:02:55]}
{[%emt 00:00:01]} bxc6 {[%clk 00:02:40]} {[%emt 00:00:01]} 8. d3 {[%clk
00:02:55]} {[%emt 00:00:02]} Bf5 {[%clk 00:02:38]} {[%emt 00:00:05]} 9. Nd2
{[%clk 00:02:45]} {[%emt 00:00:11]} e6 {[%clk 00:02:38]} {[%emt 00:00:02]} 10.
g4 {[%clk 00:02:45]} {[%emt 00:00:02]} Bg6 {[%clk 00:02:38]} {[%emt 00:00:03]}
11. h4 {[%clk 00:02:45]} {[%emt 00:00:01]} h5 {[%clk 00:02:37]} {[%emt
00:00:03]} 12. g5 {[%clk 00:02:45]} {[%emt 00:00:02]} Nd7 {[%clk 00:02:38]}
{[%emt 00:00:02]} 13. Nxg6 {[%clk 00:02:44]} {[%emt 00:00:02]} fxg6 {[%clk
00:02:38]} {[%emt 00:00:02]} 14. Qf3 {[%clk 00:02:39]} {[%emt 00:00:07]} Ne5
{[%clk 00:02:19]} {[%emt 00:00:21]} 15. Qh3 {[%clk 00:02:36]} {[%emt 00:00:04]}
Ng4 {[%clk 00:02:10]} {[%emt 00:00:12]} 16. Ke2 {[%clk 00:02:25]} {[%emt
00:00:13]} d4 {[%clk 00:01:46]} {[%emt 00:00:26]} 17. exd4 {[%clk 00:02:22]}
{[%emt 00:00:05]} Qf4 {[%clk 00:01:38]} {[%emt 00:00:10]} 18. Ne4 {[%clk
00:02:18]} {[%emt 00:00:06]} cxd4 {[%clk 00:01:31]} {[%emt 00:00:09]} 19. Bxd4
{[%clk 00:02:18]} {[%emt 00:00:02]} O-O-O {[%clk 00:01:30]} {[%emt 00:00:03]}
20. Bb6 {[%clk 00:02:12]} {[%emt 00:00:08]} Rd5 {[%clk 00:01:17]} {[%emt
00:00:15]} 21. f3 {[%clk 00:01:39]} {[%emt 00:00:35]} Qe3+ {[%clk 00:01:17]}
{[%emt 00:00:02]} 22. Bxe3 {[%emt 00:00:02]} 1-0